[Event "African Open (w)"]
[Site "followchess.com"]
[Date "2022.09.24"]
[Round "6"]
[White "Ayemou Mazan Emmanuela Esther"]
[Black "Nkhoma, Desiderata"]
[Result "1-0"]
[ECO "D80"]
[WhiteElo "1523"]
[BlackElo "1446"]
[PlyCount "99"]
[EventDate "2022.??.??"]
[TimeControl "5400+30"]

1. d4 {[%emt 0:00:25]} d5 {[%emt 0:00:22]} 2. e3 {[%emt 0:00:33]} Nf6 {[%emt 0:
01:14]} 3. Bd3 {[%emt 0:00:31]} g6 {[%emt 0:00:44]} 4. Nf3 {[%emt 0:01:07]} Bg7
{[%emt 0:00:41]} 5. c4 {[%emt 0:00:50]} c6 {[%emt 0:03:20]} 6. Nc3 {[%emt 0:00:
55]} O-O {[%emt 0:00:47]} 7. O-O {[%emt 0:00:30]} Nbd7 {[%emt 0:04:39]} 8. cxd5
{[%emt 0:02:48]} Nxd5 {[%emt 0:03:06]} 9. Nxd5 {[%emt 0:02:32]} cxd5 {[%emt 0:
00:21]} 10. Bd2 {[%emt 0:01:22]} e5 {[%emt 0:08:15]} 11. dxe5 {[%emt 0:01:50]}
Nxe5 {[%emt 0:00:13]} 12. Nxe5 {[%emt 0:00:12]} Bxe5 {[%emt 0:00:16]} 13. Qb3 {
[%emt 0:03:06]} b6 {[%emt 0:05:56]} 14. Bc3 {[%emt 0:03:26]} d4 {[%emt 0:03:45]
} 15. Bxd4 {[%emt 0:03:31]} Bxd4 {[%emt 0:00:17]} 16. exd4 {[%emt 0:00:20]}
Qxd4 {[%emt 0:00:20]} 17. Rad1 {[%emt 0:00:57]} Qg4 {[%emt 0:06:55]} 18. h3 {
[%emt 0:01:57]} Qg5 {[%emt 0:01:23]} 19. Qb5 {[%emt 0:01:20]} Qf4 {[%emt 0:03:
40]} 20. Rfe1 {[%emt 0:02:34]} Bb7 {[%emt 0:05:38]} 21. Re7 {[%emt 0:03:08]}
Bc8 {[%emt 0:05:15]} 22. Bc4 {[%emt 0:03:22]} Be6 {[%emt 0:00:46]} 23. Bxe6 {
[%emt 0:01:58]} fxe6 {[%emt 0:00:20]} 24. Qe2 {[%emt 0:01:04]} Rf6 {[%emt 0:05:
08]} 25. Rxe6 {[%emt 0:03:26]} Raf8 {[%emt 0:00:34]} 26. Rxf6 {[%emt 0:02:10]}
Qxf6 {[%emt 0:01:46]} 27. Qd2 {[%emt 0:01:58]} Rf7 {[%emt 0:05:40]} 28. Qd8+ {
[%emt 0:00:45]} Kg7 {[%emt 0:01:28]} 29. Qxf6+ {[%emt 0:00:40]} Kxf6 {[%emt 0:
00:21]} 30. f3 {[%emt 0:00:24]} Ke6 {[%emt 0:01:07]} 31. Kf2 {[%emt 0:00:50]}
Rd7 {[%emt 0:00:36]} 32. Rxd7 {[%emt 0:00:23]} Kxd7 {[%emt 0:00:21]} 33. Ke3
Ke6 34. Ke4 {[%emt 0:00:40]} a5 {[%emt 0:03:57]} 35. a4 {[%emt 0:00:59]} Kd6 {
[%emt 0:01:51]} 36. Kd4 {[%emt 0:00:12]} Ke6 {[%emt 0:00:29]} 37. g3 {[%emt 0:
00:54]} Kd6 {[%emt 0:04:31]} 38. f4 {[%emt 0:00:43]} h5 {[%emt 0:08:02]} 39. g4
{[%emt 0:01:04]} Ke6 {[%emt 0:01:04]} 40. Kc4 {[%emt 0:01:42]} Kd6 {[%emt 0:05:
25]} 41. f5 {[%emt 0:03:40]} gxf5 {[%emt 0:07:01]} 42. gxh5 {[%emt 0:01:03]}
Ke6 {[%emt 0:00:49]} 43. Kd4 {[%emt 0:00:47]} Kf6 {[%emt 0:01:16]} 44. h6 {
[%emt 0:00:17]} f4 {[%emt 0:00:00]} 45. Ke4 {[%emt 0:00:00]} Kg6 {[%emt 0:00:
00]} 46. Kxf4 {[%emt 0:00:00]} Kxh6 {[%emt 0:00:00]} 47. Ke5 {[%emt 0:00:00]}
Kh5 {[%emt 0:00:00]} 48. Kd6 {[%emt 0:00:00]} Kh4 {[%emt 0:00:00]} 49. Kc6 {
[%emt 0:00:00]} Kxh3 {[%emt 0:00:00]} 50. Kxb6 {[%emt 0:00:00]} 1-0

[Event "African Open (w)"]
[Site "followchess.com"]
[Date "2022.09.24"]
[Round "6"]
[White "Marochkina, Nadezhda Valerevna"]
[Black "Abigail Karyah"]
[Result "1-0"]
[ECO "D30"]
[WhiteElo "1689"]
[BlackElo "1435"]
[PlyCount "99"]
[EventDate "2022.??.??"]
[TimeControl "5400+30"]

1. d4 {[%emt 0:00:02]} d5 {[%emt 0:00:05]} 2. c4 {[%emt 0:00:09]} e6 {[%emt 0:
00:17]} 3. Nf3 {[%emt 0:00:29]} Nf6 {[%emt 0:00:19]} 4. Bg5 {[%emt 0:00:14]}
Be7 {[%emt 0:00:10]} 5. e3 {[%emt 0:00:09]} O-O {[%emt 0:00:18]} 6. Bd3 {
[%emt 0:00:40]} b6 {[%emt 0:00:36]} 7. Qc2 {[%emt 0:03:40]} h6 {[%emt 0:00:25]}
8. Bh4 {[%emt 0:00:15]} Nbd7 {[%emt 0:00:54]} 9. O-O {[%emt 0:00:15]} Bb7 {
[%emt 0:00:12]} 10. a3 {[%emt 0:00:54]} c5 {[%emt 0:00:40]} 11. Nbd2 {[%emt 0:
03:41]} Rc8 {[%emt 0:05:32]} 12. Qb3 {[%emt 0:04:44]} cxd4 {[%emt 0:03:20]} 13.
Nxd4 {[%emt 0:01:16]} Nc5 {[%emt 0:00:31]} 14. Qc2 {[%emt 0:05:00]} Nxd3 {
[%emt 0:00:14]} 15. Qxd3 {[%emt 0:00:14]} dxc4 {[%emt 0:00:45]} 16. Qc2 {
[%emt 0:08:19]} Qd5 {[%emt 0:02:21]} 17. N2f3 {[%emt 0:02:29]} Qc5 {[%emt 0:01:
56]} 18. Rfd1 {[%emt 0:03:25]} Bxf3 {[%emt 0:00:49]} 19. Nxf3 {[%emt 0:00:10]}
Rfd8 {[%emt 0:03:31]} 20. Rac1 {[%emt 0:01:59]} b5 {[%emt 0:05:56]} 21. h3 {
[%emt 0:07:23]} a5 {[%emt 0:00:56]} 22. Rd4 {[%emt 0:01:13]} Nd5 {[%emt 0:06:
06]} 23. Bxe7 {[%emt 0:01:30]} Qxe7 {[%emt 0:00:12]} 24. Qd2 {[%emt 0:01:24]}
Ra8 {[%emt 0:05:17]} 25. Ne5 {[%emt 0:03:51]} Rdc8 {[%emt 0:01:09]} 26. e4 {
[%emt 0:01:50]} Nf6 {[%emt 0:02:32]} 27. a4 {[%emt 0:02:46]} Qc5 {[%emt 0:07:
37]} 28. Nd7 {[%emt 0:02:43]} Nxd7 {[%emt 0:04:19]} 29. Rxd7 {[%emt 0:00:07]}
Qe5 {[%emt 0:05:33]} 30. axb5 {[%emt 0:02:39]} Qxb5 {[%emt 0:01:11]} 31. Qd4 {
[%emt 0:05:06]} a4 {[%emt 0:07:35]} 32. Rd6 {[%emt 0:06:44]} Qc5 {[%emt 0:02:
13]} 33. Rd8+ {[%emt 0:04:58]} Qf8 {[%emt 0:04:58]} 34. Rxf8+ {[%emt 0:00:22]}
Rxf8 {[%emt 0:00:34]} 35. Rxc4 {[%emt 0:00:39]} a3 {[%emt 0:00:08]} 36. bxa3 {
[%emt 0:00:17]} Rxa3 {[%emt 0:00:09]} 37. Ra4 {[%emt 0:01:50]} Rb3 {[%emt 0:00:
12]} 38. Ra7 {[%emt 0:00:44]} Rbb8 {[%emt 0:00:30]} 39. Kh2 {[%emt 0:00:57]}
Rbd8 {[%emt 0:00:15]} 40. Rd7 {[%emt 0:00:09]} Rc8 {[%emt 0:00:11]} 41. f4 {
[%emt 0:00:15]} Rce8 {[%emt 0:01:27]} 42. f5 {[%emt 0:00:52]} exf5 {[%emt 0:00:
14]} 43. exf5 {[%emt 0:00:07]} Rc8 {[%emt 0:00:47]} 44. h4 {[%emt 0:00:40]} Rc6
{[%emt 0:04:18]} 45. Rd6 {[%emt 0:01:01]} Rfc8 {[%emt 0:01:32]} 46. f6 {
[%emt 0:02:57]} h5 {[%emt 0:03:17]} 47. Rd8+ {[%emt 0:03:41]} Rxd8 {[%emt 0:00:
41]} 48. Qxd8+ {[%emt 0:00:07]} Kh7 {[%emt 0:00:04]} 49. fxg7 {[%emt 0:01:10]}
Kxg7 {[%emt 0:00:24]} 50. Qg5+ {[%emt 0:00:10]} 1-0

[Event "African Open (w)"]
[Site "followchess.com"]
[Date "2022.09.24"]
[Round "6"]
[White "Yavo Tchetche, Marie"]
[Black "Ayemou Akissi Victoire Sinchi"]
[Result "1/2-1/2"]
[ECO "A21"]
[WhiteElo "1363"]
[BlackElo "1182"]
[PlyCount "57"]
[EventDate "2022.??.??"]
[TimeControl "5400+30"]

1. c4 {[%emt 0:00:11]} e5 {[%emt 0:00:09]} 2. Nc3 {[%emt 0:00:42]} d6 {[%emt 0:
00:45]} 3. g3 {[%emt 0:00:20]} Nf6 {[%emt 0:01:00]} 4. Bg2 {[%emt 0:00:47]} Be6
{[%emt 0:00:55]} 5. Qb3 {[%emt 0:02:25]} Nbd7 {[%emt 0:00:59]} 6. d3 {[%emt 0:
02:10]} Rb8 {[%emt 0:02:36]} 7. e3 {[%emt 0:02:56]} Be7 {[%emt 0:01:50]} 8.
Nge2 {[%emt 0:00:47]} O-O {[%emt 0:01:12]} 9. O-O {[%emt 0:01:30]} h6 {[%emt 0:
02:43]} 10. Qc2 {[%emt 0:03:38]} c6 {[%emt 0:02:23]} 11. b3 {[%emt 0:00:29]} d5
{[%emt 0:01:03]} 12. Bb2 {[%emt 0:00:25]} Qc7 {[%emt 0:00:34]} 13. Rac1 {
[%emt 0:01:41]} b5 {[%emt 0:01:29]} 14. cxb5 {[%emt 0:01:53]} cxb5 {[%emt 0:00:
26]} 15. Nxd5 {[%emt 0:02:08]} Nxd5 {[%emt 0:00:59]} 16. Qxc7 {[%emt 0:00:19]}
Nxc7 17. Rxc7 {[%emt 0:00:12]} a6 {[%emt 0:00:37]} 18. Rfc1 {[%emt 0:01:09]}
Rfe8 {[%emt 0:04:59]} 19. d4 {[%emt 0:01:36]} exd4 {[%emt 0:01:14]} 20. Bxd4 {
[%emt 0:02:19]} Nf6 {[%emt 0:00:30]} 21. Nf4 {[%emt 0:01:07]} Bf5 {[%emt 0:01:
47]} 22. Ra7 {[%emt 0:01:41]} Bc8 {[%emt 0:02:00]} 23. Rcc7 {[%emt 0:03:03]}
Bd8 {[%emt 0:01:27]} 24. Rxf7 {[%emt 0:04:02]} g5 {[%emt 0:11:20]} 25. Rg7+ Kf8
26. Rgf7+ Kg8 27. Rg7+ Kf8 28. Rgf7+ Kg8 29. Rg7+ 1/2-1/2

[Event "African Open (w)"]
[Site "followchess.com"]
[Date "2022.09.24"]
[Round "6"]
[White "Pires, Luzia"]
[Black "Vilhete, Vania Fausto Da T."]
[Result "1-0"]
[ECO "D05"]
[WhiteElo "1839"]
[BlackElo "1718"]
[PlyCount "167"]
[EventDate "2022.??.??"]
[TimeControl "5400+30"]

1. d4 {[%emt 0:00:54]} d5 {[%emt 0:00:07]} 2. Nf3 {[%emt 0:00:24]} Nf6 {
[%emt 0:00:22]} 3. e3 {[%emt 0:02:29]} e6 {[%emt 0:00:08]} 4. Bd3 {[%emt 0:00:
23]} Be7 {[%emt 0:00:12]} 5. Nbd2 {[%emt 0:00:26]} a6 {[%emt 0:01:21]} 6. O-O {
[%emt 0:01:06]} O-O {[%emt 0:00:18]} 7. b3 {[%emt 0:00:10]} b5 {[%emt 0:00:23]}
8. c4 {[%emt 0:00:34]} bxc4 {[%emt 0:00:43]} 9. bxc4 {[%emt 0:00:19]} c5 {
[%emt 0:01:57]} 10. dxc5 {[%emt 0:06:10]} dxc4 {[%emt 0:03:13]} 11. Bxc4 {
[%emt 0:02:00]} Bxc5 {[%emt 0:00:25]} 12. Bb2 {[%emt 0:00:34]} Nbd7 {[%emt 0:
00:36]} 13. Rc1 {[%emt 0:04:16]} Qe7 {[%emt 0:20:55]} 14. Qc2 {[%emt 0:14:04]}
Bb7 {[%emt 0:12:49]} 15. Rfd1 {[%emt 0:02:36]} Rfc8 {[%emt 0:05:53]} 16. Qd3 {
[%emt 0:07:42]} Nb6 {[%emt 0:08:59]} 17. Bb3 {[%emt 0:05:24]} Rd8 {[%emt 0:03:
14]} 18. Qc3 {[%emt 0:05:52]} Rac8 {[%emt 0:02:00]} 19. Qe5 {[%emt 0:01:10]}
Nbd7 {[%emt 0:05:54]} 20. Qg3 {[%emt 0:07:31]} Bd6 {[%emt 0:02:05]} 21. Qh4 {
[%emt 0:00:42]} h6 {[%emt 0:03:31]} 22. Nc4 {[%emt 0:03:01]} Bxf3 {[%emt 0:03:
12]} 23. gxf3 {[%emt 0:00:02]} Bb8 {[%emt 0:02:43]} 24. Kh1 {[%emt 0:02:36]}
Nd5 {[%emt 0:04:45]} 25. Qh3 {[%emt 0:01:14]} Nf8 {[%emt 0:01:20]} 26. Rg1 {
[%emt 0:03:12]} Ng6 {[%emt 0:00:48]} 27. Rg2 {[%emt 0:00:23]} Qb4 {[%emt 0:04:
07]} 28. Rxg6 {[%emt 0:01:51]} fxg6 {[%emt 0:00:32]} 29. Qxe6+ {[%emt 0:00:02]}
Kh7 {[%emt 0:00:58]} 30. Rg1 {[%emt 0:02:51]} Ne7 {[%emt 0:04:54]} 31. Ba3 {
[%emt 0:03:45]} Qb7 {[%emt 0:01:22]} 32. e4 {[%emt 0:01:44]} Qc7 {[%emt 0:02:
27]} 33. Rg2 {[%emt 0:00:45]} Nc6 {[%emt 0:02:20]} 34. Qxg6+ {[%emt 0:00:45]}
Kh8 {[%emt 0:00:14]} 35. Bb2 {[%emt 0:00:25]} Nd4 {[%emt 0:00:21]} 36. f4 Qe7 {
[%emt 0:02:22]} 37. Ne3 {[%emt 0:11:10]} Rc6 {[%emt 0:00:19]} 38. Qg4 {[%emt 0:
01:07]} Kh7 {[%emt 0:00:20]} 39. Ba4 {[%emt 0:05:46]} Rb6 {[%emt 0:00:25]} 40.
Bxd4 {[%emt 0:02:20]} Rxd4 {[%emt 0:00:27]} 41. Bc2 {[%emt 0:00:57]} Rd7 {
[%emt 0:00:00]} 42. Nd5 {[%emt 0:00:00]} Rxd5 {[%emt 0:00:00]} 43. exd5+ {
[%emt 0:00:00]} Kg8 {[%emt 0:00:00]} 44. Qf5 {[%emt 0:00:00]} Qf6 {[%emt 0:00:
00]} 45. Qc8+ {[%emt 0:00:00]} Kf7 {[%emt 0:00:00]} 46. Bg6+ {[%emt 0:00:00]}
Ke7 {[%emt 0:00:00]} 47. Rg1 {[%emt 0:00:00]} Qxf4 {[%emt 0:00:12]} 48. d6+ {
[%emt 0:00:00]} Bxd6 {[%emt 0:02:15]} 49. Qe8+ {[%emt 0:00:00]} Kf6 {[%emt 0:
00:31]} 50. Qf7+ {[%emt 0:00:00]} Ke5 {[%emt 0:00:06]} 51. Re1+ {[%emt 0:00:00]
} Kd4 {[%emt 0:00:27]} 52. Re4+ {[%emt 0:00:00]} Qxe4+ {[%emt 0:00:08]} 53.
Bxe4 {[%emt 0:00:00]} Kxe4 {[%emt 0:00:13]} 54. Qxg7 {[%emt 0:00:00]} Bc5 {
[%emt 0:00:47]} 55. Kg2 {[%emt 0:00:00]} Bd4 {[%emt 0:01:07]} 56. f3+ {[%emt 0:
00:00]} Ke3 {[%emt 0:00:27]} 57. Qe7+ {[%emt 0:00:00]} Kd3 {[%emt 0:00:19]} 58.
Qe4+ {[%emt 0:00:00]} Kc4 {[%emt 0:00:14]} 59. Kg3 {[%emt 0:00:00]} a5 {
[%emt 0:01:22]} 60. Kg4 {[%emt 0:00:00]} a4 {[%emt 0:00:39]} 61. h4 {[%emt 0:
00:00]} a3 {[%emt 0:00:18]} 62. f4 {[%emt 0:00:00]} Rb2 {[%emt 0:01:29]} 63.
Qc6+ {[%emt 0:00:00]} Kb4 {[%emt 0:00:55]} 64. Qd5 {[%emt 0:00:00]} Kc3 {
[%emt 0:00:30]} 65. Kh5 {[%emt 0:00:00]} Rf2 {[%emt 0:00:24]} 66. Qb3+ {
[%emt 0:00:00]} Kd2 {[%emt 0:00:28]} 67. Qxa3 {[%emt 0:00:00]} Rxf4 {[%emt 0:
00:10]} 68. Qg3 {[%emt 0:00:00]} Be3 {[%emt 0:00:22]} 69. Kg6 {[%emt 0:00:00]}
Rf1 {[%emt 0:01:01]} 70. Qd6+ {[%emt 0:00:00]} Ke2 {[%emt 0:00:20]} 71. Qa6+ {
[%emt 0:02:42]} Kf2 {[%emt 0:00:13]} 72. a4 {[%emt 0:00:27]} Rg1+ {[%emt 0:00:
16]} 73. Kf5 {[%emt 0:00:37]} Rc1 {[%emt 0:00:52]} 74. Ke4 {[%emt 0:01:25]} Re1
{[%emt 0:01:13]} 75. Qf6+ {[%emt 0:01:10]} Ke2 {[%emt 0:00:31]} 76. a5 {
[%emt 0:01:53]} Bf2 {[%emt 0:01:04]} 77. a6 {[%emt 0:02:20]} Kd2+ {[%emt 0:00:
13]} 78. Kf3 {[%emt 0:00:47]} Be3 {[%emt 0:00:29]} 79. Qd6+ {[%emt 0:01:04]}
Kc2 {[%emt 0:00:17]} 80. Qc7+ {[%emt 0:00:33]} Kd2 {[%emt 0:00:08]} 81. a7 {
[%emt 0:00:28]} Rf1+ {[%emt 0:00:18]} 82. Ke4 {[%emt 0:01:18]} Ra1 {[%emt 0:00:
21]} 83. Qd6+ {[%emt 0:00:46]} Ke2 {[%emt 0:01:38]} 84. Qd3+ {[%emt 0:00:11]}
1-0

[Event "African Open (w)"]
[Site "followchess.com"]
[Date "2022.09.24"]
[Round "6"]
[White "OLORUNTOLA, Oluwatobiloba"]
[Black "Mudodo, Refiloe Hazel"]
[Result "1-0"]
[ECO "A17"]
[WhiteElo "1918"]
[BlackElo "1683"]
[PlyCount "117"]
[EventDate "2022.??.??"]
[TimeControl "5400+30"]

1. c4 {[%emt 0:00:06]} Nf6 {[%emt 0:00:43]} 2. Nc3 {[%emt 0:00:28]} e6 {
[%emt 0:01:01]} 3. g3 {[%emt 0:01:20]} d5 {[%emt 0:01:18]} 4. d4 {[%emt 0:00:
34]} Be7 {[%emt 0:01:41]} 5. Bg2 {[%emt 0:00:17]} c6 {[%emt 0:00:20]} 6. c5 {
[%emt 0:02:44]} O-O {[%emt 0:02:00]} 7. Nf3 {[%emt 0:00:36]} Nbd7 {[%emt 0:01:
52]} 8. O-O {[%emt 0:01:08]} b6 {[%emt 0:02:29]} 9. cxb6 {[%emt 0:09:52]} axb6
{[%emt 0:01:02]} 10. a3 {[%emt 0:01:29]} h6 {[%emt 0:03:32]} 11. b3 {[%emt 0:
01:01]} Ba6 {[%emt 0:03:16]} 12. b4 {[%emt 0:01:58]} Bc4 {[%emt 0:05:27]} 13.
Bb2 {[%emt 0:00:35]} Qc8 {[%emt 0:06:40]} 14. Re1 {[%emt 0:00:52]} Qb7 {
[%emt 0:02:43]} 15. Nd2 {[%emt 0:05:35]} Rfd8 {[%emt 0:05:47]} 16. Nxc4 {
[%emt 0:04:00]} dxc4 {[%emt 0:00:32]} 17. b5 {[%emt 0:00:17]} Nd5 {[%emt 0:01:
16]} 18. Qc2 {[%emt 0:18:32]} Qc7 {[%emt 0:06:39]} 19. bxc6 {[%emt 0:07:03]}
Qxc6 {[%emt 0:08:40]} 20. e4 {[%emt 0:02:01]} Nxc3 {[%emt 0:01:07]} 21. Qxc3 {
[%emt 0:00:15]} Qc7 {[%emt 0:03:21]} 22. d5 {[%emt 0:06:43]} e5 {[%emt 0:02:55]
} 23. a4 {[%emt 0:06:14]} Bc5 {[%emt 0:06:00]} 24. Qd2 {[%emt 0:08:18]} Ra6 {
[%emt 0:10:29]} 25. Rec1 {[%emt 0:00:54]} Rda8 {[%emt 0:00:24]} 26. Qd1 {
[%emt 0:00:46]} Bb4 {[%emt 0:06:02]} 27. Bf1 {[%emt 0:01:08]} Nc5 {[%emt 0:01:
13]} 28. Rxc4 {[%emt 0:01:51]} Ba5 {[%emt 0:03:38]} 29. Rc2 {[%emt 0:06:06]}
R6a7 {[%emt 0:01:02]} 30. Bb5 {[%emt 0:00:37]} Qd6 {[%emt 0:02:26]} 31. Bc6 {
[%emt 0:02:07]} Rd8 {[%emt 0:01:15]} 32. Ba3 {[%emt 0:00:36]} Rc7 {[%emt 0:01:
23]} 33. Qc1 {[%emt 0:01:40]} Qg6 {[%emt 0:03:31]} 34. Bxc5 {[%emt 0:02:15]}
bxc5 {[%emt 0:00:17]} 35. Rxc5 {[%emt 0:00:16]} Bb6 {[%emt 0:00:28]} 36. Rc4 {
[%emt 0:03:10]} Bd4 {[%emt 0:00:22]} 37. Ra2 {[%emt 0:00:30]} Qxe4 {[%emt 0:00:
31]} 38. d6 {[%emt 0:00:17]} Rxc6 {[%emt 0:00:16]} 39. Rxc6 {[%emt 0:00:08]}
Qd5 {[%emt 0:00:08]} 40. Rac2 {[%emt 0:02:04]} Rxd6 {[%emt 0:00:35]} 41. Rxd6 {
[%emt 0:00:52]} Qxd6 {[%emt 0:00:03]} 42. Rc8+ {[%emt 0:00:33]} Kh7 {[%emt 0:
01:07]} 43. Qc2+ {[%emt 0:02:12]} g6 {[%emt 0:00:09]} 44. Rc7 {[%emt 0:00:00]}
Qf6 {[%emt 0:00:00]} 45. Kg2 {[%emt 0:00:00]} Kg7 {[%emt 0:00:00]} 46. Rc6 {
[%emt 0:00:00]} Qd8 {[%emt 0:00:00]} 47. Qc4 {[%emt 0:00:00]} Qg5 {[%emt 0:00:
00]} 48. a5 {[%emt 0:00:00]} Qf5 {[%emt 0:00:00]} 49. f3 {[%emt 0:00:00]} Qg5 {
[%emt 0:00:00]} 50. Qc1 {[%emt 0:00:00]} Be3 {[%emt 0:00:00]} 51. Qf1 {[%emt 0:
00:00]} Bd4 {[%emt 0:00:00]} 52. Rc2 {[%emt 0:00:00]} Qf6 {[%emt 0:00:00]} 53.
a6 {[%emt 0:00:00]} Ba7 {[%emt 0:00:00]} 54. Qb5 {[%emt 0:00:00]} Qd6 {[%emt 0:
00:00]} 55. Qe2 {[%emt 0:00:00]} Qd4 {[%emt 0:00:00]} 56. Rd2 {[%emt 0:00:00]}
Qc5 {[%emt 0:00:00]} 57. Rd7 {[%emt 0:00:00]} h5 {[%emt 0:00:00]} 58. Kh3 {
[%emt 0:00:00]} Kg8 {[%emt 0:00:00]} 59. Qa2 {[%emt 0:00:00]} 1-0

[Event "African Open (w)"]
[Site "followchess.com"]
[Date "2022.09.24"]
[Round "6"]
[White "Likando Namakau"]
[Black "Laubscher, Anzel"]
[Result "1/2-1/2"]
[ECO "D45"]
[WhiteElo "1527"]
[BlackElo "1705"]
[PlyCount "69"]
[EventDate "2022.??.??"]
[TimeControl "5400+30"]

1. d4 {[%emt 0:00:14]} d5 {[%emt 0:00:08]} 2. c4 {[%emt 0:01:05]} c6 {[%emt 0:
00:09]} 3. e3 {[%emt 0:00:43]} Nf6 {[%emt 0:00:14]} 4. Nf3 {[%emt 0:01:20]} e6
{[%emt 0:00:14]} 5. Nc3 {[%emt 0:03:23]} Be7 {[%emt 0:00:28]} 6. Be2 {[%emt 0:
01:38]} dxc4 {[%emt 0:01:06]} 7. Bxc4 {[%emt 0:00:43]} b5 {[%emt 0:00:30]} 8.
Bd3 {[%emt 0:01:05]} a6 {[%emt 0:00:38]} 9. a3 {[%emt 0:00:45]} c5 {[%emt 0:02:
23]} 10. dxc5 {[%emt 0:03:25]} Bxc5 {[%emt 0:00:20]} 11. O-O {[%emt 0:00:16]}
Nbd7 {[%emt 0:03:23]} 12. b4 {[%emt 0:03:34]} Be7 {[%emt 0:03:38]} 13. Bb2 {
[%emt 0:00:41]} Bb7 {[%emt 0:03:30]} 14. Qe2 {[%emt 0:02:43]} O-O {[%emt 0:01:
42]} 15. Rfd1 {[%emt 0:00:50]} Qe8 {[%emt 0:05:46]} 16. Rac1 {[%emt 0:02:57]}
Rc8 {[%emt 0:02:30]} 17. Nd2 {[%emt 0:06:48]} Nb6 {[%emt 0:11:37]} 18. Nce4 {
[%emt 0:04:58]} Nbd5 {[%emt 0:07:55]} 19. Qf3 {[%emt 0:12:18]} Rxc1 {[%emt 0:
02:15]} 20. Rxc1 {[%emt 0:00:34]} Qd7 {[%emt 0:02:30]} 21. Qh3 {[%emt 0:04:55]}
h6 {[%emt 0:02:47]} 22. Bb1 {[%emt 0:02:13]} Rc8 {[%emt 0:03:37]} 23. Rd1 {
[%emt 0:10:34]} Qc7 {[%emt 0:09:28]} 24. Qf3 {[%emt 0:06:00]} Nb6 {[%emt 0:08:
12]} 25. Bxf6 {[%emt 0:04:06]} Bxf6 {[%emt 0:09:00]} 26. Nxf6+ {[%emt 0:01:29]}
gxf6 {[%emt 0:00:19]} 27. Qxf6 {[%emt 0:01:43]} Qc3 {[%emt 0:01:17]} 28. Qxh6 {
[%emt 0:03:09]} Qg7 {[%emt 0:00:29]} 29. Qh3 {[%emt 0:02:58]} Rd8 {[%emt 0:07:
06]} 30. Bc2 {[%emt 0:03:46]} Nc4 {[%emt 0:04:57]} 31. Nxc4 {[%emt 0:01:07]}
Rxd1+ {[%emt 0:00:11]} 32. Bxd1 {[%emt 0:00:08]} bxc4 {[%emt 0:00:10]} 33. f3 {
[%emt 0:08:30]} Qa1 {[%emt 0:04:41]} 34. Qg3+ {[%emt 0:00:44]} Kh8 {[%emt 0:02:
48]} 35. Qh4+ {[%emt 0:01:55]} 1/2-1/2

[Event "African Open (w)"]
[Site "followchess.com"]
[Date "2022.09.24"]
[Round "6"]
[White "Ofowino, Toritsemuwa"]
[Black "Michael Bridget"]
[Result "1-0"]
[ECO "D02"]
[WhiteElo "1857"]
[BlackElo "1800"]
[PlyCount "86"]
[EventDate "2022.??.??"]
[TimeControl "5400+30"]

1. d4 {[%emt 0:00:05]} d5 {[%emt 0:00:29]} 2. Nf3 {[%emt 0:00:12]} Nf6 {
[%emt 0:00:23]} 3. c3 {[%emt 0:00:27]} Bf5 {[%emt 0:01:20]} 4. Qb3 {[%emt 0:00:
44]} Qc8 {[%emt 0:00:42]} 5. c4 {[%emt 0:00:31]} e6 {[%emt 0:02:11]} 6. cxd5 {
[%emt 0:00:40]} exd5 {[%emt 0:01:05]} 7. Nc3 {[%emt 0:01:00]} c6 {[%emt 0:00:
45]} 8. Bf4 {[%emt 0:00:22]} Be7 {[%emt 0:00:59]} 9. Rc1 {[%emt 0:01:31]} O-O {
[%emt 0:00:33]} 10. e3 {[%emt 0:02:20]} h6 {[%emt 0:01:13]} 11. Be2 {[%emt 0:
04:22]} Nbd7 {[%emt 0:02:19]} 12. O-O {[%emt 0:02:49]} a6 {[%emt 0:13:13]} 13.
h3 {[%emt 0:00:18]} Ra7 {[%emt 0:01:15]} 14. Qa4 {[%emt 0:07:09]} Qd8 {[%emt 0:
01:30]} 15. b4 {[%emt 0:03:45]} b5 {[%emt 0:02:55]} 16. Qb3 {[%emt 0:03:17]}
Nb6 {[%emt 0:01:16]} 17. Ne5 {[%emt 0:02:22]} Qa8 {[%emt 0:01:48]} 18. Nxc6 {
[%emt 0:13:17]} Nc4 {[%emt 0:13:06]} 19. Nxe7+ {[%emt 0:01:45]} Rxe7 {[%emt 0:
00:11]} 20. Rfd1 {[%emt 0:00:47]} Rfe8 21. a4 {[%emt 0:10:58]} Qb7 {[%emt 0:05:
17]} 22. axb5 {[%emt 0:01:19]} axb5 {[%emt 0:00:07]} 23. Ra1 {[%emt 0:00:39]}
Ne4 {[%emt 0:02:46]} 24. Ra2 {[%emt 0:08:17]} Qc6 {[%emt 0:16:21]} 25. Nxe4 {
[%emt 0:07:20]} Bxe4 {[%emt 0:01:10]} 26. Bd3 {[%emt 0:00:21]} Qg6 {[%emt 0:03:
12]} 27. Bxe4 {[%emt 0:00:10]} Qxe4 {[%emt 0:00:27]} 28. Qd3 {[%emt 0:00:31]}
Qe6 {[%emt 0:00:46]} 29. Rda1 {[%emt 0:00:21]} Qe4 {[%emt 0:06:48]} 30. Qxe4 {
[%emt 0:00:14]} Rxe4 {[%emt 0:00:08]} 31. Ra7 {[%emt 0:01:16]} R4e7 {[%emt 0:
07:15]} 32. Rxe7 {[%emt 0:00:33]} Rxe7 {[%emt 0:00:07]} 33. Ra8+ {[%emt 0:00:
08]} Kh7 {[%emt 0:00:09]} 34. Rb8 {[%emt 0:00:24]} g5 {[%emt 0:03:15]} 35. Bg3
{[%emt 0:00:32]} Ra7 {[%emt 0:04:42]} 36. Rxb5 {[%emt 0:01:52]} Ra1+ {[%emt 0:
00:20]} 37. Kh2 {[%emt 0:00:15]} Nd2 {[%emt 0:01:17]} 38. h4 {[%emt 0:02:51]}
gxh4 {[%emt 0:01:57]} 39. Bxh4 {[%emt 0:00:16]} Nf1+ {[%emt 0:02:00]} 40. Kh3 {
[%emt 0:00:21]} Nd2 {[%emt 0:00:48]} 41. Kg3 {[%emt 0:02:11]} Rh1 42. Be7 Rf1 {
[%emt 0:04:00]} 43. Rxd5 {[%emt 0:01:53]} Nc4 {[%emt 0:01:15]} 1-0